fUSD/lending_fUSD_20251003
["ID","MTS","AMOUNT","RATE_DAILY","PERIOD"]
[388914250,1759492288889,-500.0,0.00021917,2]
[388914251,1759492288898,-593.3,0.00021917,2]
[388914252,1759492288907,-600.92075769,0.00021917,2]
[388914253,1759492288917,-500.0,0.00021917,2]
[388914254,1759492288927,-500.0,0.00021917,2]
[388914255,1759492288937,-631.71,0.00021917,2]
[388914256,1759492288948,-500.0,0.00021917,2]
[388914257,1759492288958,-500.0,0.00021917,2]
[388914258,1759492288968,-593.3,0.00021917,2]
[388914259,1759492288978,-631.71,0.00021917,2]
[388914260,1759492288987,-1191.53,0.00021917,2]
[388914261,1759492288997,-500.0,0.00021917,2]
[388914262,1759492289006,-502.0182196,0.00021917,2]
[388914263,1759492289016,-151.0,0.00021917,2]
[388914264,1759492289025,-593.3,0.00021917,2]
[388914265,1759492289034,-631.71,0.00021917,2]
[388914266,1759492289043,-1191.53,0.00021917,2]
[388914267,1759492289053,-500.0,0.00021917,2]
[388914268,1759492289062,-370.44563115,0.00021917,2]
[388914269,1759492289072,-631.71,0.00021917,2]
[388914270,1759492289081,-336.92032488,0.00021917,2]
[388914275,1759492318543,2008.61,0.00030136,120]
[388914276,1759492375976,-152.0,0.000169,2]
[388914277,1759492426526,500.0,0.00030137,120]
[388914278,1759492507500,550.0,0.00030137,120]
[388914279,1759492512861,-28.6338,0.000169,2]
[388914280,1759492513246,-259.4524,0.000169,2]
[388914281,1759492523976,-303.16,0.000169,2]
[388914282,1759492534327,555.0,0.00030137,120]
[388914283,1759492548786,171914.43314089,0.0003,120]
[388914284,1759492573174,1000.0,0.00030137,120]
[388914285,1759492597013,1000.1,0.00030137,120]
[388914286,1759492623028,1000.01,0.00030137,120]
[388914287,1759492654608,1000.11,0.00030137,120]
[388914288,1759492688772,1000.12,0.00030137,120]
[388914289,1759492721601,1000.05,0.00030137,120]
[388914290,1759492743115,600.0,0.000166,2]
[388914291,1759492754374,-16.8781116,0.000169,2]
[388914292,1759492754412,-865.2437768,0.0001695,2]
[388914295,1759492901264,50000.0,0.00030136,120]
[388914300,1759493163729,158.192453,0.0003013,120]
[388914320,1759493432076,-174.93,0.00017,2]
[388914321,1759493432087,-300.0,0.00017999,2]
[388914322,1759493432097,-300.0,0.00017999,2]
[388914323,1759493432106,-1200.0,0.00017999,2]
[388914324,1759493432117,-206.0,0.00017999,2]
[388914325,1759493432127,-8829.80678,0.00018,2]
[388914326,1759493432136,-303.12,0.00018069,2]
[388914327,1759493432145,-301.88,0.0001816,2]
[388914328,1759493432155,-305.14,0.0001816,2]
[388914329,1759493432165,-392.66236553,0.00018262,2]
[388914330,1759493432176,-4115.0,0.00018554,2]
[388914331,1759493432186,-899.0,0.00018554,2]
[388914332,1759493432196,-195.0,0.00018645,2]
[388914333,1759493432206,-250.0,0.000187,2]
[388914334,1759493432216,-244.28262085,0.000187,2]
[388914335,1759493432227,-195.0,0.000187,2]
[388914336,1759493432238,-2128.317869,0.000187,2]
[388914337,1759493432249,-550.0,0.00019507,2]
[388914338,1759493432259,-1000.0,0.00019508,2]
[388914339,1759493432270,-6401.83,0.00019508,2]
[388914340,1759493432280,-55562.29641789,0.00019508,2]
[388914345,1759493432319,-13891.78358211,0.00019508,2]
[388914347,1759493432328,-150.99,0.00019508,2]
[388914349,1759493432336,-303.19,0.00019556,2]
[388914351,1759493432345,-420.0,0.00019639,2]
[388914353,1759493432354,-1680.0,0.00019735,2]
[388914355,1759493432363,-513.1666732,0.00019803,2]
[388914357,1759493432371,-41615.66107995,0.000199,2]
[388914373,1759493432517,-38384.33892005,0.000199,2]
[388914375,1759493432526,-235.08149,0.0002,2]
[388914377,1759493432536,-8916.35195175,0.0002,10]
[388914379,1759493432547,-38047.21229072,0.0002,10]
[388914381,1759493432557,-738.63700139,0.00020221,2]
[388914383,1759493432566,-260.81,0.00020321,2]
[388914386,1759493432576,-763.82,0.00020497,2]
[388914387,1759493432586,-168.49,0.00020536,2]
[388914389,1759493432595,-200.0,0.0002071,2]
[388914390,1759493432605,-151.0,0.0002071,2]
[388914392,1759493432615,-151.0,0.0002071,2]
[388914394,1759493432625,-151.0,0.0002071,2]
[388914395,1759493432635,-623.5871045,0.0002071,2]
[388914396,1759493432645,-500.0,0.0002071,2]
[388914397,1759493432655,-500.0,0.0002071,2]
[388914398,1759493432666,-500.0,0.0002071,2]
[388914399,1759493432676,-500.0,0.0002071,2]
[388914400,1759493432686,-151.0,0.0002071,2]
[388914401,1759493432695,-500.0,0.0002071,2]
[388914402,1759493432705,-500.0,0.0002071,2]
[388914403,1759493432714,-500.0,0.0002071,2]
[388914404,1759493432724,-151.0,0.0002071,2]
[388914405,1759493432734,-500.0,0.0002071,2]
[388914406,1759493432743,-500.0,0.0002071,2]
[388914407,1759493432761,-151.0,0.0002071,2]
[388914408,1759493432771,-500.0,0.0002071,2]
[388914409,1759493432780,-500.0,0.0002071,2]
[388914410,1759493432790,-500.0,0.0002071,2]
[388914411,1759493432800,-151.0,0.0002071,2]
[388914412,1759493432810,-500.0,0.0002071,2]
[388914413,1759493432819,-500.0,0.0002071,2]
[388914414,1759493432829,-500.0,0.0002071,2]
[388914415,1759493432838,-151.0,0.0002071,2]
[388914416,1759493432848,-500.0,0.0002071,2]
[388914417,1759493432857,-500.0,0.0002071,2]
[388914418,1759493432867,-500.0,0.0002071,2]
[388914419,1759493432877,-500.0,0.0002071,2]
[388914420,1759493432887,-500.0,0.0002071,2]
[388914421,1759493432897,-500.0,0.0002071,2]
[388914422,1759493432906,-500.0,0.0002071,2]
[388914423,1759493432916,-151.0,0.0002071,2]
[388914424,1759493432930,-500.0,0.0002071,2]
[388914425,1759493432939,-205.61614287,0.0002071,2]
[388914426,1759493432949,-500.0,0.0002071,2]
[388914427,1759493432963,-500.0,0.0002071,2]
[388914428,1759493432974,-151.0,0.0002071,2]
[388914429,1759493432984,-211.53,0.0002071,2]
[388914430,1759493432993,-465.16,0.00020712,2]
[388914431,1759493433004,-11947.16,0.00020722,2]
[388914432,1759493433014,-300.0,0.000208,7]
[388914433,1759493433024,-276.57898787,0.0002084,2]
[388914434,1759493433034,-201.41620955,0.00020842,2]
[388914435,1759493433045,-250.0,0.0002086,2]
[388914436,1759493433055,-595.80908037,0.00020899,2]
[388914437,1759493433065,-507.46119453,0.00020899,2]
[388914438,1759493433076,-500.0,0.00020899,2]
[388914439,1759493433085,-500.0,0.00020899,2]
[388914440,1759493433094,-500.0,0.00020899,2]
[388914441,1759493433105,-500.0,0.00020899,2]
[388914442,1759493433115,-500.0,0.00020899,2]
[388914443,1759493433126,-500.0,0.00020899,2]
[388914444,1759493433136,-500.0,0.00020899,2]
[388914445,1759493433146,-500.0,0.00020899,2]
[388914446,1759493433157,-540.95216299,0.00020899,2]
[388914447,1759493433167,-500.0,0.00020899,2]
[388914448,1759493433178,-500.0,0.00020899,2]
[388914449,1759493433188,-500.0,0.00020899,2]
[388914450,1759493433198,-500.0,0.00020899,2]
[388914451,1759493433208,-230.64385428,0.00020899,2]
[388914452,1759493433221,-269.35614572,0.00020899,2]
[388914453,1759493433232,-500.0,0.00020899,2]
[388914454,1759493433242,-500.0,0.00020899,2]
[388914455,1759493433254,-80000.0,0.000209,2]
[388914456,1759493433265,-700.0,0.000209,7]
[388914457,1759493433275,-150.0,0.00020942,2]
[388914458,1759493433285,-807.29,0.00020959,2]
[388914459,1759493433295,-807.29,0.00020959,2]
[388914460,1759493433305,-807.29,0.00020959,2]
[388914461,1759493433315,-807.29,0.00020959,2]
[388914462,1759493433325,-807.29,0.00020959,2]
[388914463,1759493433335,-224.01,0.00020959,2]
[388914464,1759493433345,-500.0,0.00020973,2]
[388914465,1759493433355,-500.0,0.00020973,2]
[388914466,1759493433365,-500.0,0.00020973,2]
[388914467,1759493433375,-500.0,0.00020973,2]
[388914468,1759493433385,-300.0,0.00020973,2]
[388914469,1759493433394,-500.0,0.00020973,2]
[388914470,1759493433404,-500.0,0.00020973,2]
[388914471,1759493433414,-500.0,0.00020973,2]
[388914472,1759493433424,-500.0,0.00020973,2]
[388914473,1759493433434,-500.0,0.00020973,2]
[388914474,1759493433444,-211.53,0.00020984,2]
[388914475,1759493433453,-465.16,0.0002099,2]
[388914476,1759493433464,-210.48880328,0.00020999,2]
[388914477,1759493433474,-624.99664071,0.00020999,2]
[388914478,1759493433485,-210.19481172,0.00020999,2]
[388914479,1759493433494,-35878.85140216,0.00021,2]
[388914480,1759493433506,-556.8968615,0.00021,2]
[388914502,1759493438061,-370.55283938,0.00019525,2]
[388914503,1759493438071,-76.6527235,0.0001999,2]
[388914504,1759493438083,-282.7372765,0.0001999,2]
[388914505,1759493438093,-359.39,0.00020712,2]
[388914506,1759493438103,-359.39,0.0002089,2]
[388914507,1759493438113,-359.39,0.00020949,2]
[388914508,1759493438123,-359.39,0.0002099,2]
[388914509,1759493438133,-35579.7027235,0.00021,2]
[388914510,1759493438422,-837.26648161,0.00021,2]
[388914511,1759493438447,-2970.00001,0.00021,2]
[388914512,1759493438458,-6475.36513633,0.00021,2]
[388914513,1759493438479,-9439.30576672,0.00021,2]
[388914517,1759493440025,-316.72,0.00018554,2]
[388914518,1759493440037,-158087.53505676,0.00021,2]
[388914519,1759493440928,-40791.8414312,0.00021,2]
[388914520,1759493440979,-659.77157109,0.00021,2]
[388914521,1759493440991,-307.8,0.00021,2]
[388914531,1759493443055,-842.26145612,0.00021,2]
[388914532,1759493443108,-237506.59720211,0.00021,2]
[388914533,1759493443121,-433.17516052,0.00021,2]
[388914534,1759493443133,-9617.91894786,0.00021,2]
[388914535,1759493443163,-265671.22566922,0.00021,2]
[388914536,1759493443172,-827.05811909,0.00021,2]
[388914537,1759493443181,-473.79,0.00021041,2]
[388914538,1759493443191,-177.14925818,0.00021059,2]
[388914539,1759493443201,-226.04486565,0.00021159,2]
[388914540,1759493443211,-188.78,0.00021178,2]
[388914541,1759493443221,-167.75,0.00021178,2]
[388914542,1759493443231,-1196.84,0.00021178,2]
[388914543,1759493443241,-211.55,0.00021258,2]
[388914544,1759493443251,-590.17553223,0.00021259,2]
[388914545,1759493443260,-226.04486559,0.00021269,2]
[388914546,1759493443272,-168.0,0.00021365,2]
[388914547,1759493443282,-1000.0,0.00021369,2]
[388914548,1759493443292,-226.04486559,0.00021378,2]
[388914549,1759493443302,-1000.0,0.000214,7]
[388914550,1759493443312,-587.0,0.00021428,2]
[388914551,1759493443321,-226.04486559,0.00021488,2]
[388914552,1759493443331,-1400.0,0.000215,7]
[388914553,1759493443340,-1000.0,0.00021521,2]
[388914554,1759493443350,-1000.0,0.00021521,2]
[388914555,1759493443360,-500.0,0.00021521,2]
[388914556,1759493443370,-1000.0,0.00021521,2]
[388914557,1759493443379,-1000.0,0.00021521,2]
[388914558,1759493443389,-1000.0,0.00021521,2]
[388914559,1759493443398,-4115.0,0.00021554,2]
[388914560,1759493443408,-226.04486559,0.00021598,2]
[388914561,1759493443418,-1700.0,0.000216,7]
[388914562,1759493443427,-2000.0,0.000216,2]
[388914563,1759493443437,-1570.0,0.000216,2]
[388914564,1759493443447,-2000.0,0.0002161,2]
[388914565,1759493443456,-2000.0,0.0002162,2]
[388914566,1759493443466,-150.59,0.00021626,2]
[388914567,1759493443475,-2412.935659,0.0002163,2]
[388914568,1759493443485,-16593.8275915,0.00021636,2]
[388914569,1759493443495,-1689.0,0.00021639,2]
[388914570,1759493443504,-964.256,0.00021644,2]
[388914571,1759493443514,-200.984,0.00021644,2]
[388914572,1759493443526,-300.0,0.000217,7]
[388914573,1759493443536,-333.07497,0.000217,2]
[388914574,1759493443546,-243.0,0.000217,2]
[388914575,1759493443557,-385.0,0.000217,2]
[388914576,1759493443567,-787.0,0.000217,2]
[388914577,1759493443578,-226.04486559,0.00021707,2]
[388914578,1759493443588,-1000.0,0.0002178,2]
[388914579,1759493443598,-333.07498,0.0002178,2]
[388914580,1759493443609,-300.0,0.000218,7]
[388914581,1759493443619,-5000.0,0.00021817,2]
[388914582,1759493443629,-226.04486559,0.00021817,2]
[388914583,1759493443639,-340.88860686,0.00021817,2]
[388914584,1759493443649,-586.69166064,0.00021817,2]
[388914585,1759493443659,-157.8679304,0.00021817,2]
[388914586,1759493443669,-230.0,0.00021837,2]
[388914587,1759493443678,-150.0,0.00021878,2]
[388914588,1759493443688,-300.0,0.000219,7]
[388914589,1759493443698,-763.15,0.000219,7]
[388914590,1759493443708,-80000.0,0.000219,2]
[388914591,1759493443717,-5800.0,0.000219,2]
[388914592,1759493443727,-150.59,0.00021907,2]
[388914593,1759493443737,-150.59,0.00021907,2]
[388914594,1759493443746,-1000.0,0.00021916,2]
[388914595,1759493443756,-1000.0,0.00021916,2]
[388914596,1759493443765,-1000.0,0.00021916,2]
[388914597,1759493443777,-1000.0,0.00021916,2]
[388914598,1759493444234,-1000.0,0.00021916,2]
[388914599,1759493444259,-1000.0,0.00021916,2]
[388914600,1759493444268,-1000.0,0.00021916,2]
[388914601,1759493444279,-1000.0,0.00021916,2]
[388914602,1759493444289,-1012.719,0.00021916,2]
[388914603,1759493444299,-1805.66,0.00021916,5]
[388914604,1759493444308,-1805.66,0.00021916,5]
[388914605,1759493444318,-1805.66,0.00021916,5]
[388914606,1759493444327,-1805.66,0.00021916,5]
[388914607,1759493444336,-1805.66,0.00021916,5]
[388914608,1759493444345,-1805.66,0.00021916,5]
[388914609,1759493444355,-1805.66,0.00021916,5]
[388914610,1759493444364,-1805.66,0.00021916,5]
[388914611,1759493444374,-1805.66,0.00021916,5]
[388914612,1759493444383,-1805.66,0.00021916,5]
[388914613,1759493444393,-1805.66,0.00021916,5]
[388914614,1759493444402,-1805.66,0.00021916,5]
[388914615,1759493444411,-1805.66,0.00021916,5]
[388914616,1759493444421,-1805.66,0.00021916,5]
[388914617,1759493444430,-1805.66,0.00021916,5]
[388914618,1759493444440,-1805.66,0.00021916,5]
[388914619,1759493444450,-1805.66,0.00021916,5]
[388914620,1759493444459,-1805.66,0.00021916,5]
[388914621,1759493444468,-1805.66,0.00021916,5]
[388914622,1759493444478,-1805.66,0.00021916,5]
[388914623,1759493444487,-1805.66,0.00021916,5]
[388914624,1759493444497,-1805.66,0.00021916,5]
[388914625,1759493444506,-1805.66,0.00021916,5]
[388914626,1759493444516,-1805.74144216,0.00021916,5]
[388914627,1759493444527,-300.0,0.00021916,2]
[388914628,1759493444537,-666.0,0.00021916,2]
[388914629,1759493444546,-6552.14455305,0.00021917,2]
[388914630,1759493444556,-231068.34666462,0.00021917,2]
[388914631,1759493444566,-533.84,0.00021917,2]
[388914632,1759493444576,-514.59,0.00021917,2]
[388914633,1759493444585,-827.05811909,0.00021917,2]
[388914634,1759493444595,-827.05811909,0.00021917,2]
[388914635,1759493444604,-515.08,0.00021917,2]
[388914636,1759493444614,-500.0,0.00021917,2]
[388914637,1759493444624,-500.0,0.00021917,2]
[388914638,1759493444634,-500.0,0.00021917,2]
[388914639,1759493444643,-500.0,0.00021917,2]
[388914640,1759493444652,-500.0,0.00021917,2]
[388914641,1759493444662,-500.0,0.00021917,2]
[388914642,1759493444672,-500.0,0.00021917,2]
[388914643,1759493444681,-500.0,0.00021917,2]
[388914644,1759493444690,-500.0,0.00021917,2]
[388914645,1759493444700,-500.0,0.00021917,2]
[388914646,1759493444710,-500.0,0.00021917,2]
[388914647,1759493444719,-500.0,0.00021917,2]
[388914648,1759493444729,-500.0,0.00021917,2]
[388914649,1759493444738,-500.0,0.00021917,2]
[388914650,1759493444747,-499.00873714,0.00021917,2]
[388914651,1759493444759,-510.03,0.00021917,2]
[388914652,1759493444768,-510.03,0.00021917,2]
[388914653,1759493444779,-510.03,0.00021917,2]
[388914654,1759493444788,-510.03,0.00021917,2]
[388914655,1759493444798,-510.03,0.00021917,2]
[388914656,1759493444807,-510.03,0.00021917,2]
[388914657,1759493444817,-510.03,0.00021917,2]
[388914658,1759493444826,-510.03,0.00021917,2]
[388914659,1759493444836,-510.03,0.00021917,2]
[388914660,1759493444845,-510.03,0.00021917,2]
[388914661,1759493444855,-510.03,0.00021917,2]
[388914662,1759493444864,-510.03,0.00021917,2]
[388914663,1759493444873,-510.03,0.00021917,2]
[388914664,1759493444883,-510.03,0.00021917,2]
[388914665,1759493444893,-510.03,0.00021917,2]
[388914666,1759493444903,-510.03,0.00021917,2]
[388914667,1759493444912,-510.03,0.00021917,2]
[388914668,1759493444924,-510.03,0.00021917,2]
[388914669,1759493444934,-510.03,0.00021917,2]
[388914670,1759493444944,-510.03,0.00021917,2]
[388914671,1759493444954,-510.03,0.00021917,2]
[388914672,1759493444965,-510.03,0.00021917,2]
[388914673,1759493444975,-510.03,0.00021917,2]
[388914674,1759493444984,-510.17916553,0.00021917,2]
[388914675,1759493444993,-500.0,0.00021917,2]
[388914676,1759493445002,-500.0,0.00021917,2]
[388914677,1759493445014,-500.0,0.00021917,2]
[388914678,1759493445026,-500.0,0.00021917,2]
[388914679,1759493445035,-500.0,0.00021917,2]
[388914680,1759493445045,-500.0,0.00021917,2]
[388914681,1759493445055,-502.08731885,0.00021917,2]
[388914682,1759493445065,-500.0,0.00021917,2]
[388914683,1759493445075,-500.0,0.00021917,2]
[388914684,1759493445084,-500.0,0.00021917,2]
[388914685,1759493445093,-500.0,0.00021917,2]
[388914686,1759493445103,-500.0,0.00021917,2]
[388914687,1759493445113,-500.0,0.00021917,2]
[388914688,1759493445122,-162.82116604,0.00021917,2]
[388914689,1759493445132,-500.0,0.00021917,2]
[388914690,1759493445142,-500.0,0.00021917,2]
[388914691,1759493445152,-504.53763391,0.00021917,2]
[388914692,1759493445162,-500.0,0.00021917,2]
[388914693,1759493445171,-500.0,0.00021917,2]
[388914694,1759493445181,-500.0,0.00021917,2]
[388914695,1759493445191,-500.0,0.00021917,2]
[388914696,1759493445201,-500.0,0.00021917,2]
[388914697,1759493445210,-500.0,0.00021917,2]
[388914698,1759493445220,-500.0,0.00021917,2]
[388914699,1759493445230,-500.0,0.00021917,2]
[388914700,1759493445239,-500.0,0.00021917,2]
[388914701,1759493445249,-500.0,0.00021917,2]
[388914702,1759493445259,-500.0,0.00021917,2]
[388914703,1759493445269,-500.0,0.00021917,2]
[388914704,1759493445279,-500.0,0.00021917,2]
[388914705,1759493445289,-500.0,0.00021917,2]
[388914706,1759493445299,-222.02605463,0.00021917,2]
[388914707,1759493445309,-500.0,0.00021917,2]
[388914708,1759493445318,-500.0,0.00021917,2]
[388914709,1759493445327,-500.0,0.00021917,2]
[388914710,1759493445336,-500.0,0.00021917,2]
[388914711,1759493445344,-500.0,0.00021917,2]
[388914712,1759493445353,-500.0,0.00021917,2]
[388914713,1759493445361,-500.0,0.00021917,2]
[388914714,1759493445369,-500.0,0.00021917,2]
[388914715,1759493445377,-500.0,0.00021917,2]
[388914716,1759493445386,-500.0,0.00021917,2]
[388914717,1759493445394,-500.0,0.00021917,2]
[388914718,1759493445403,-500.0,0.00021917,2]
[388914719,1759493445412,-500.0,0.00021917,2]
[388914720,1759493445423,-500.0,0.00021917,2]
[388914721,1759493445440,-500.0,0.00021917,2]
[388914722,1759493445453,-500.0,0.00021917,2]
[388914723,1759493445467,-500.0,0.00021917,2]
[388914724,1759493445477,-500.0,0.00021917,2]
[388914725,1759493445486,-500.0,0.00021917,2]
[388914726,1759493445496,-500.0,0.00021917,2]
[388914727,1759493445506,-500.0,0.00021917,2]
[388914728,1759493445524,-502.76464545,0.00021917,2]
[388914729,1759493445536,-500.0,0.00021917,2]
[388914730,1759493445550,-500.0,0.00021917,2]
[388914731,1759493445559,-500.0,0.00021917,2]
[388914732,1759493445570,-500.0,0.00021917,2]
[388914733,1759493445581,-500.0,0.00021917,2]
[388914734,1759493445599,-500.0,0.00021917,2]
[388914735,1759493445609,-500.0,0.00021917,2]
[388914736,1759493445619,-500.0,0.00021917,2]
[388914737,1759493445629,-500.0,0.00021917,2]
[388914738,1759493445643,-162.50107343,0.00021917,2]
[388914739,1759493445660,-500.0,0.00021917,2]
[388914740,1759493445671,-500.0,0.00021917,2]
[388914741,1759493445680,-500.0,0.00021917,2]
[388914742,1759493445691,-500.0,0.00021917,2]
[388914743,1759493445704,-500.0,0.00021917,2]
[388914744,1759493445717,-500.0,0.00021917,2]
[388914745,1759493445733,-500.0,0.00021917,2]
[388914746,1759493445750,-500.0,0.00021917,2]
[388914747,1759493445764,-215.89163213,0.00021917,2]
[388914749,1759493445775,-500.0,0.00021917,2]
[388914750,1759493445785,-582.13001932,0.00021917,2]
[388914751,1759493445795,-500.0,0.00021917,2]
[388914752,1759493445806,-500.0,0.00021917,2]
[388914753,1759493445823,-500.0,0.00021917,2]
[388914755,1759493445835,-500.0,0.00021917,2]
[388914756,1759493445846,-623.49,0.00021917,2]
[388914757,1759493445858,-500.0,0.00021917,2]
[388914758,1759493445870,-623.49,0.00021917,2]
[388914759,1759493445885,-500.0,0.00021917,2]
[388914760,1759493445895,-623.49,0.00021917,2]
[388914761,1759493445904,-500.0,0.00021917,2]
[388914762,1759493445913,-500.0,0.00021917,2]
[388914763,1759493445922,-623.49,0.00021917,2]
[388914764,1759493445935,-500.0,0.00021917,2]
[388914765,1759493445944,-623.49,0.00021917,2]
[388914766,1759493445953,-417.83152295,0.00021917,2]
[388914767,1759493445962,-623.49,0.00021917,2]
[388914768,1759493445973,-623.49,0.00021917,2]
[388914769,1759493445982,-623.49,0.00021917,2]
[388914770,1759493445991,-623.49,0.00021917,2]
[388914771,1759493446003,-623.49,0.00021917,2]
[388914772,1759493446012,-623.49,0.00021917,2]
[388914773,1759493446022,-623.49,0.00021917,2]
[388914774,1759493446032,-555.26,0.00021917,2]
[388914775,1759493446042,-555.26,0.00021917,2]
[388914776,1759493446051,-623.49,0.00021917,2]
[388914777,1759493446061,-555.26,0.00021917,2]
[388914778,1759493446071,-623.49,0.00021917,2]
[388914779,1759493446081,-555.26,0.00021917,2]
[388914780,1759493446089,-623.49,0.00021917,2]
[388914781,1759493446097,-555.26,0.00021917,2]
[388914782,1759493446105,-623.49,0.00021917,2]
[388914783,1759493446113,-555.26,0.00021917,2]
[388914784,1759493446122,-623.49,0.00021917,2]
[388914785,1759493446130,-555.26,0.00021917,2]
[388914786,1759493446139,-623.49,0.00021917,2]
[388914787,1759493446148,-555.26,0.00021917,2]
[388914788,1759493446157,-623.49,0.00021917,2]
[388914789,1759493446165,-555.26,0.00021917,2]
[388914790,1759493446174,-623.49,0.00021917,2]
[388914791,1759493446183,-555.26,0.00021917,2]
[388914792,1759493446192,-623.49,0.00021917,2]
[388914793,1759493446201,-555.26,0.00021917,2]
[388914794,1759493446209,-623.49,0.00021917,2]
[388914795,1759493446218,-555.26,0.00021917,2]
[388914796,1759493446226,-623.49,0.00021917,2]
[388914797,1759493446235,-555.26,0.00021917,2]
[388914798,1759493446245,-623.62,0.00021917,2]
[388914799,1759493446256,-555.26,0.00021917,2]
[388914800,1759493446267,-555.26,0.00021917,2]
[388914801,1759493446276,-555.26,0.00021917,2]
[388914802,1759493446286,-555.26,0.00021917,2]
[388914803,1759493446295,-555.26,0.00021917,2]
[388914804,1759493446304,-555.26,0.00021917,2]
[388914805,1759493446314,-920.35,0.00021917,2]
[388914806,1759493446323,-555.26,0.00021917,2]
[388914807,1759493446333,-555.26,0.00021917,2]
[388914808,1759493446342,-920.35,0.00021917,2]
[388914809,1759493446351,-920.35,0.00021917,2]
[388914810,1759493446361,-555.26,0.00021917,2]
[388914811,1759493446370,-920.35,0.00021917,2]
[388914812,1759493446379,-555.26,0.00021917,2]
[388914813,1759493446389,-555.27421742,0.00021917,2]
[388914814,1759493446398,-920.35,0.00021917,2]
[388914815,1759493446407,-920.35,0.00021917,2]
[388914816,1759493446417,-920.35,0.00021917,2]
[388914818,1759493446426,-920.35,0.00021917,2]
[388914820,1759493446435,-920.35,0.00021917,2]
[388914821,1759493446444,-920.35,0.00021917,2]
[388914822,1759493446453,-920.35,0.00021917,2]
[388914823,1759493446463,-920.35,0.00021917,2]
[388914824,1759493446473,-920.35,0.00021917,2]
[388914825,1759493446484,-920.35,0.00021917,2]
[388914826,1759493446496,-920.35,0.00021917,2]
[388914827,1759493446506,-920.35,0.00021917,2]
[388914828,1759493446517,-920.35,0.00021917,2]
[388914829,1759493446527,-920.35,0.00021917,2]
[388914830,1759493446536,-920.35,0.00021917,2]
[388914831,1759493446546,-920.35,0.00021917,2]
[388914832,1759493446556,-920.35,0.00021917,2]
[388914833,1759493446565,-920.35,0.00021917,2]
[388914834,1759493446574,-920.35,0.00021917,2]
[388914835,1759493446583,-920.35583587,0.00021917,2]
[388914836,1759493446592,-604.13,0.00021917,2]
[388914837,1759493446601,-604.13,0.00021917,2]
[388914838,1759493446611,-578.96,0.00021917,2]
[388914839,1759493446622,-604.13,0.00021917,2]
[388914840,1759493446632,-578.96,0.00021917,2]
[388914841,1759493446641,-604.31,0.00021917,2]
[388914842,1759493446651,-578.96,0.00021917,2]
[388914843,1759493446661,-578.96,0.00021917,2]
[388914844,1759493446670,-578.96,0.00021917,2]
[388914845,1759493446679,-578.96,0.00021917,2]
[388914846,1759493446688,-578.96,0.00021917,2]
[388914847,1759493446699,-578.96,0.00021917,2]
[388914848,1759493446708,-578.96,0.00021917,2]
[388914849,1759493446718,-578.96,0.00021917,2]
[388914850,1759493446727,-578.96,0.00021917,2]